bitfinex/quotes_SOLUSD_20220307
["timestamp","ask_amount","ask_price","bid_price","bid_amount"]
[1646664609861,17.4943,85.81,85.742,0.25]
[1646664610057,0.25,85.809,85.742,0.25]
[1646664610265,5.829,85.808,85.742,0.25]
[1646664610457,0.25,85.807,85.742,0.25]
[1646664610656,0.25,85.809,85.742,0.25]
[1646664611056,5.829,85.808,85.742,0.25]
[1646664611257,17.4957,85.8,85.742,6.25]
[1646664611459,0.25,85.799,85.742,6.25]
[1646664611657,0.25,85.799,85.742,0.25]
[1646664611857,0.25,85.799,85.743,6.0]
[1646664612057,0.25,85.799,85.744,0.25]
[1646664612261,0.25,85.799,85.742,6.25]
[1646664612667,0.25,85.799,85.742,0.25]
[1646664612867,0.25,85.806,85.742,0.25]
[1646664613068,5.829,85.805,85.742,0.25]
[1646664613268,17.4963,85.8,85.742,0.25]
[1646664613466,0.25,85.799,85.742,0.25]
[1646664614265,17.4985,85.79,85.742,0.25]
[1646664614467,0.25,85.789,85.742,0.25]
[1646664615567,0.25,85.795,85.742,0.25]
[1646664616969,0.25,85.796,85.742,0.25]
[1646664617570,6.25,85.819,85.75,17.4946]
[1646664617771,6.25,85.819,85.751,0.25]
[1646664617972,5.828,85.818,85.751,0.25]
[1646664618168,6.25,85.817,85.751,0.25]
[1646664618369,5.828,85.816,85.751,0.25]
[1646664618571,6.25,85.815,85.751,0.25]
[1646664618770,5.828,85.814,85.751,6.25]
[1646664618970,0.25,85.813,85.751,6.25]
[1646664619171,5.828,85.812,85.751,6.25]
[1646664619373,0.25,85.811,85.751,0.25]
[1646664619572,23.3216,85.81,85.751,0.25]
[1646664619771,0.25,85.809,85.751,0.25]
[1646664619972,5.828,85.808,85.751,0.25]
[1646664620174,0.25,85.807,85.743,0.25]
[1646664620373,5.829,85.806,85.743,0.25]
[1646664620572,0.25,85.805,85.743,0.25]
[1646664620775,0.25,85.805,85.743,6.25]
[1646664621377,5.829,85.804,85.743,0.25]
[1646664621577,23.2128,85.803,85.742,0.25]
[1646664621875,5.829,85.802,85.742,0.25]
[1646664622077,0.25,85.801,85.742,0.25]
[1646664622284,23.3247,85.8,85.742,0.25]
[1646664622476,0.25,85.799,85.742,0.25]
[1646664622678,0.25,85.801,85.742,0.25]
[1646664622679,0.25,85.801,85.742,6.25]
[1646664623176,0.25,85.801,85.742,0.25]
[1646664623399,23.3252,85.8,85.742,0.25]
[1646664623578,0.25,85.799,85.742,0.25]
[1646664623776,1.5585686,85.811,85.742,0.25]
[1646664623979,0.25,85.81,85.742,6.25]
[1646664624279,0.25,85.81,85.75,133.594]
[1646664624478,0.25,85.81,85.751,6.25]
[1646664625081,0.25,85.816,85.751,6.25]
[1646664625283,0.25,85.817,85.752,116.1]
[1646664625481,5.828,85.816,85.761,48.18762451]
[1646664625683,0.25,85.815,85.762,6.25]
[1646664625882,5.828,85.814,85.762,64.74]
[1646664626081,0.25,85.813,85.762,64.74]
[1646664627185,0.25,85.818,85.762,58.74]
[1646664627383,5.828,85.817,85.762,58.74]
[1646664627583,1.5585686,85.815,85.77,17.4904]
[1646664627786,7.6365686,85.814,85.77,17.4904]
[1646664628587,1.5585686,85.813,85.77,17.4904]
[1646664628887,6.078,85.812,85.77,17.4904]
[1646664629692,1.5585686,85.818,85.771,0.25]
[1646664629891,1.5585686,85.83,85.78,133.5859]
[1646664630090,1.5585686,85.838,85.782,163.41715259]
[1646664630292,1.5585686,85.842,85.784,116.1]
[1646664630491,1.5585686,85.842,85.786,116.1]
[1646664630693,1.5585686,85.842,85.788,116.1]
[1646664630911,1.5585686,85.842,85.79,116.1]
[1646664631113,1.5585686,85.843,85.8,17.4825]
[1646664631308,1.5585686,85.843,85.801,41.32572749]
[1646664631711,1.5585686,85.845,85.801,41.32572749]
[1646664631909,0.25,85.844,85.801,35.32572749]
[1646664632312,0.25,85.844,85.802,6.0]
[1646664632510,1.5585686,85.851,85.81,17.4826]
[1646664633013,1.5585686,85.853,85.81,133.5826]
[1646664633210,1.5585686,85.857,85.811,6.25]
[1646664633410,1.5585686,85.861,85.811,0.25]
[1646664633612,1.5585686,85.857,85.82,17.4778]
[1646664633812,1.5585686,85.858,85.821,39.220409]
[1646664634314,0.25,85.857,85.821,39.220409]
[1646664634912,0.25,85.858,85.821,39.220409]
[1646664635515,0.25,85.862,85.811,0.25]
[1646664635713,1.5585686,85.863,85.794,6.25]
[1646664635913,1.5585686,85.86,85.794,0.25]
[1646664636112,1.5585686,85.866,85.794,6.25]
[1646664636313,5.825,85.865,85.8,17.4847]
[1646664636513,5.825,85.865,85.801,54.80254082]
[1646664636714,1.5585686,85.866,85.801,54.80254082]
[1646664636913,1.5585686,85.865,85.801,54.80254082]
[1646664637114,0.25,85.864,85.801,54.80254082]
[1646664637615,6.25,85.865,85.82,17.4791]
[1646664637814,6.25,85.865,85.821,47.53951127]
[1646664638214,6.0,85.864,85.821,47.53951127]
[1646664638413,0.25,85.863,85.821,47.53951127]
[1646664638614,0.25,85.865,85.821,47.53951127]
[1646664638815,0.25,85.865,85.83,17.4788]
[1646664639518,0.25,85.868,85.83,17.4788]
[1646664639718,0.25,85.869,85.83,17.4788]
[1646664640520,0.25,85.871,85.83,17.4788]
[1646664642120,6.0,85.873,85.83,17.4788]
[1646664642321,114.1,85.877,85.821,47.53951127]
[1646664642322,114.1,85.877,85.84,133.5744]
[1646664642622,114.1,85.877,85.841,35.45755301]
[1646664642821,114.1,85.899,85.842,6.0]
[1646664643025,114.1,85.899,85.843,0.25]
[1646664643321,114.1,85.899,85.85,17.471]
[1646664643520,114.1,85.899,85.851,6.25]
[1646664643721,6.0,85.898,85.851,6.25]
[1646664644121,0.25,85.897,85.815,17.4995]
[1646664644421,17.4797,85.89,85.8,17.485]
[1646664644621,12.073,85.889,85.793,23.7062]
[1646664645222,12.073,85.889,85.822,46.31032729]
[1646664645422,12.073,85.889,85.823,0.25]
[1646664645823,12.073,85.889,85.794,116.1]
[1646664645824,12.073,85.889,85.822,0.25]
[1646664646023,116.1,85.879,85.81,17.4825]
[1646664646222,116.1,85.877,85.77,16.82]
[1646664646421,0.27671451,85.874,85.771,6.0]
[1646664646621,0.27671451,85.874,85.772,38.8760829]
[1646664646622,0.27671451,85.871,85.772,38.8760829]
[1646664646824,0.27671451,85.869,85.773,6.0]
[1646664647024,116.1,85.867,85.773,6.0]
[1646664647224,12.075,85.866,85.773,6.0]
[1646664647423,17.4886,85.85,85.78,17.4885]
[1646664647624,12.075,85.849,85.781,6.25]
[1646664647825,12.075,85.849,85.782,6.25]
[1646664648026,12.075,85.849,85.774,0.25]
[1646664648228,23.5092,85.848,85.773,64.49]
[1646664648426,12.075,85.847,85.773,64.49]
[1646664648827,116.1,85.839,85.74,16.82]
[1646664649027,0.22083144,85.836,85.721,116.1]
[1646664649230,0.22083144,85.834,85.721,133.1863]
[1646664649426,0.22083144,85.832,85.721,160.05757006]
[1646664649628,5.829,85.831,85.721,160.05757006]
[1646664649828,23.7401,85.83,85.761,48.34576952]
[1646664650028,23.7401,85.83,85.762,0.25]
[1646664650429,5.827,85.829,85.762,0.25]
[1646664650629,6.25,85.828,85.762,0.25]
[1646664650831,17.4924,85.82,85.762,0.25]
[1646664651031,12.078,85.819,85.762,0.25]
[1646664652129,17.4937,85.81,85.762,0.25]
[1646664652331,6.078,85.809,85.762,0.25]
[1646664653230,6.0,85.808,85.762,0.25]
[1646664653432,6.078,85.807,85.762,0.25]
[1646664653630,6.078,85.807,85.73,174.4106]
[1646664653631,17.4962,85.8,85.71,99.315]
[1646664653831,0.18392456,85.798,85.71,24.1692]
[1646664654031,0.18392456,85.796,85.711,6.0]
[1646664654230,6.43392456,85.796,85.695,6.0]
[1646664654430,30.6269,85.795,85.695,6.0]
[1646664654733,6.25,85.794,85.697,174.59]
[1646664654931,17.5023,85.78,85.7,174.5900051]
[1646664655131,6.25,85.779,85.713,58.49]
[1646664655331,5.831,85.778,85.713,58.49]
[1646664655531,6.25,85.777,85.714,0.25]
[1646664655734,5.831,85.776,85.714,0.25]
[1646664655936,6.25,85.775,85.714,0.25]
[1646664656234,6.25,85.775,85.712,34.34772303]
[1646664656235,17.5019,85.77,85.712,34.34772303]
[1646664656432,6.25,85.769,85.712,34.34772303]
[1646664656634,5.831,85.768,85.712,34.34772303]
[1646664656837,6.25,85.767,85.712,34.34772303]
[1646664657034,5.831,85.766,85.712,34.34772303]
[1646664657257,6.25,85.765,85.712,34.34772303]
[1646664657458,5.831,85.764,85.712,34.34772303]
[1646664657657,6.25,85.763,85.713,0.25]
[1646664657857,30.6269,85.795,85.713,6.25]
[1646664658068,12.08,85.792,85.713,6.25]
[1646664658462,17.4981,85.79,85.7,5.1e-06]
[1646664658658,116.1,85.779,85.7,5.1e-06]
[1646664658864,116.1,85.777,85.7,5.1e-06]
[1646664659060,116.45738369,85.775,85.7,5.1e-06]
[1646664659258,116.45738369,85.773,85.7,5.1e-06]
[1646664659460,116.1,85.759,85.7,5.1e-06]
[1646664659662,36.2644,85.758,85.7,5.1e-06]
[1646664660059,30.4324,85.758,85.7,5.1e-06]
[1646664660260,2.83613526,85.757,85.7,5.1e-06]
[1646664660459,12.082,85.756,85.7,5.1e-06]
[1646664660659,17.5093,85.75,85.7,5.1e-06]
[1646664660861,5.832,85.749,85.7,5.1e-06]
[1646664661062,17.5093,85.75,85.7,5.1e-06]
[1646664661661,24.1824,85.758,85.701,47.92010951]
[1646664661861,24.1824,85.758,85.702,64.74]
[1646664662062,116.1,85.777,85.702,64.74]
[1646664662261,6.0,85.776,85.702,6.25]
[1646664662462,5.831,85.775,85.702,6.25]
[1646664662661,6.0,85.774,85.702,6.25]
[1646664662862,5.831,85.773,85.702,0.25]
[1646664663061,6.25,85.772,85.702,0.25]
[1646664663261,5.831,85.771,85.702,0.25]
[1646664663461,6.25,85.77,85.702,0.25]
[1646664663664,5.831,85.769,85.702,0.25]
[1646664663863,6.25,85.768,85.702,0.25]
[1646664664064,0.25,85.768,85.702,64.74]
[1646664664263,0.25,85.768,85.702,6.25]
[1646664664565,0.25,85.768,85.701,47.92010951]
[1646664664772,17.5053,85.76,85.701,47.92010951]
[1646664664963,6.25,85.759,85.701,47.92010951]
[1646664665163,5.832,85.758,85.701,47.92010951]
[1646664665364,6.25,85.757,85.702,0.25]
[1646664665564,6.25,85.759,85.702,0.25]
[1646664665964,0.25,85.759,85.702,0.25]
[1646664666364,6.082,85.775,85.702,0.25]
[1646664666565,6.0,85.774,85.702,0.25]
[1646664666764,6.081,85.773,85.702,0.25]
[1646664666965,6.0,85.772,85.702,0.25]
[1646664667266,17.5048,85.77,85.702,0.25]
[1646664667465,12.081,85.769,85.702,0.25]
[1646664668065,116.1,85.768,85.702,0.25]
[1646664668265,128.181,85.767,85.702,0.25]
[1646664668466,17.5056,85.76,85.702,0.25]
[1646664668669,12.082,85.759,85.702,0.25]
[1646664668864,12.082,85.759,85.701,47.92010951]
[1646664669265,12.082,85.759,85.7,5.1e-06]
[1646664669467,22.747,85.758,85.7,5.1e-06]
[1646664669668,17.5074,85.75,85.7,5.1e-06]
[1646664669869,30.4873,85.749,85.7,5.1e-06]
[1646664670068,5.832,85.748,85.7,5.1e-06]
[1646664670368,6.25,85.747,85.7,5.1e-06]
[1646664670569,5.832,85.746,85.7,5.1e-06]
[1646664670768,6.25,85.745,85.7,5.1e-06]
[1646664670969,5.832,85.744,85.7,5.1e-06]
[1646664671173,17.5089,85.74,85.7,5.1e-06]
[1646664671372,12.082,85.739,85.7,5.1e-06]
[1646664671970,6.082,85.739,85.7,5.1e-06]
[1646664672369,5.832,85.769,85.701,43.82025288]
[1646664672569,6.082,85.757,85.702,6.25]
[1646664672771,0.25,85.757,85.702,6.25]
[1646664673772,0.25,85.771,85.702,6.25]
[1646664673972,17.5048,85.76,85.702,6.25]
[1646664674170,0.25,85.759,85.702,6.25]
[1646664674372,5.832,85.758,85.702,0.25]
[1646664674572,0.25,85.757,85.702,0.25]
[1646664674771,6.25,85.757,85.702,0.25]
[1646664674973,17.5067,85.75,85.702,0.25]
[1646664675172,6.082,85.749,85.7,5.1e-06]
[1646664675372,116.1,85.748,85.7,5.1e-06]
[1646664675572,122.182,85.747,85.7,5.1e-06]
[1646664675771,0.25,85.746,85.7,5.1e-06]
[1646664675975,116.1,85.739,85.7,5.1e-06]
[1646664676274,116.1,85.737,85.7,5.1e-06]
[1646664676474,12.083,85.736,85.7,5.1e-06]
[1646664676772,6.25,85.735,85.7,5.1e-06]
[1646664676972,17.5176,85.73,85.7,5.1e-06]
[1646664677173,12.083,85.729,85.7,5.1e-06]
[1646664677772,6.083,85.729,85.7,5.1e-06]
[1646664678173,17.5122,85.72,85.7,5.1e-06]
[1646664678375,6.083,85.719,85.7,5.1e-06]
[1646664679277,17.5146,85.71,85.7,5.1e-06]
[1646664679575,15.10998764,85.709,85.653,6.0]
[1646664679775,6.1131229,85.709,85.652,38.44010903]
[1646664679975,8.83613526,85.708,85.652,38.44010903]
[1646664680179,6.085,85.707,85.652,38.44010903]
[1646664681277,17.5162,85.7,85.652,38.44010903]
[1646664681478,6.085,85.699,85.652,38.44010903]
[1646664683079,17.5182,85.69,85.652,38.44010903]
[1646664683379,0.25,85.689,85.652,38.44010903]
[1646664683579,0.25,85.689,85.636,58.49]
[1646664683780,6.25,85.689,85.622,17.6251]
[1646664683987,17.5204,85.68,85.6,16.82]
[1646664684283,12.088,85.679,85.6,16.82]
[1646664684483,14.92413526,85.679,85.6,16.82]
[1646664684681,14.92413526,85.679,85.601,41.08901574]
[1646664685081,17.5241,85.67,85.601,41.08901574]
[1646664685282,6.25,85.669,85.601,41.08901574]
[1646664685881,5.838,85.668,85.602,6.0]
[1646664686081,6.25,85.667,85.61,17.5239]
[1646664686285,2.83613526,85.679,85.61,133.6239]
[1646664686481,2.83613526,85.699,85.61,133.6239]
[1646664686684,0.25,85.687,85.61,150.4439]
[1646664686881,24.6342,85.707,85.611,23.50599626]
[1646664687081,5.837,85.706,85.612,116.1]
[1646664687283,5.837,85.706,85.631,47.20583418]
[1646664687482,5.837,85.706,85.632,6.25]
[1646664687682,5.837,85.687,85.632,6.25]
[1646664688285,5.837,85.687,85.632,64.74]
[1646664688685,0.25,85.686,85.632,64.74]
[1646664689085,6.25,85.686,85.64,17.5165]
[1646664689291,5.836,85.685,85.64,17.5165]
[1646664689484,6.25,85.684,85.64,17.5165]
[1646664689684,6.25,85.684,85.641,6.0]
[1646664690086,6.25,85.684,85.64,17.5165]
[1646664690285,0.25,85.684,85.64,17.5165]
[1646664690686,6.25,85.696,85.64,17.5165]
[1646664690910,5.836,85.695,85.64,17.5165]
[1646664691086,6.25,85.694,85.64,17.5165]
[1646664691684,0.25,85.694,85.64,17.5165]
[1646664692185,5.836,85.693,85.634,58.49]
[1646664692387,17.5186,85.69,85.635,6.25]
[1646664692588,12.086,85.689,85.634,58.49]
[1646664692786,12.086,85.689,85.631,47.20583418]
[1646664693786,12.086,85.689,85.566,5.44494973]
[1646664693787,17.5205,85.68,85.597,23.50599626]
[1646664693988,6.088,85.679,85.6,16.82]
[1646664694186,54.0871,85.678,85.601,6.0]
[1646664694386,6.088,85.677,85.601,6.0]
[1646664694591,6.0,85.676,85.601,6.0]
[1646664694787,6.088,85.675,85.602,42.81808795]
[1646664694987,17.5226,85.67,85.603,6.0]
[1646664695189,6.088,85.669,85.603,6.0]
[1646664695389,6.088,85.669,85.61,17.5234]
[1646664695588,6.088,85.669,85.611,6.0]
[1646664696190,6.088,85.669,85.59,16.82]
[1646664696491,17.5244,85.66,85.577,116.1]
[1646664696690,6.089,85.659,85.577,116.1]
[1646664696890,5.839,85.659,85.594,116.1]
[1646664697092,100.0,85.666,85.596,116.1]
[1646664697290,0.25,85.665,85.598,116.1]
[1646664697695,0.25,85.665,85.599,122.35]
[1646664697889,0.25,85.665,85.6,17.5255]
[1646664698091,0.25,85.665,85.601,6.25]
[1646664698291,5.838,85.664,85.601,64.74]
[1646664698489,0.25,85.663,85.602,116.1]
[1646664698690,0.25,85.663,85.606,116.1]
[1646664698890,0.25,85.663,85.611,58.49]
[1646664699093,0.25,85.663,85.612,0.25]
[1646664699393,0.25,85.663,85.62,17.5215]
[1646664699593,0.25,85.677,85.615,58.49]
[1646664699790,5.837,85.676,85.615,58.49]
[1646664699991,6.25,85.675,85.615,58.49]
[1646664700193,5.838,85.674,85.615,58.49]
[1646664700390,6.25,85.673,85.615,58.49]
[1646664700593,17.5225,85.67,85.615,103.4028652]
[1646664700792,6.088,85.669,85.615,103.4028652]
[1646664701005,5.838,85.677,85.616,116.1]
[1646664701299,5.837,85.699,85.618,116.1]
[1646664701495,35.4583,85.7,85.62,16.82]
[1646664701694,35.4583,85.7,85.621,6.25]
[1646664701894,52.9749,85.7,85.631,38.32304583]
[1646664702296,0.25,85.699,85.631,38.32304583]
[1646664702596,5.836,85.698,85.631,38.32304583]
[1646664702795,6.25,85.697,85.631,38.32304583]
[1646664702994,5.836,85.696,85.621,0.25]
[1646664703194,6.25,85.695,85.616,0.25]
[1646664703398,5.837,85.694,85.615,57.74]
[1646664703596,6.25,85.693,85.615,57.74]
[1646664703797,5.837,85.692,85.616,116.1]
[1646664703997,6.25,85.691,85.615,57.74]
[1646664704199,23.3555,85.69,85.62,17.5192]
[1646664704397,6.25,85.689,85.62,17.5192]
[1646664704604,5.837,85.688,85.62,17.5192]
[1646664704797,6.25,85.687,85.62,17.5192]
[1646664704996,6.25,85.687,85.617,116.1]
[1646664705197,6.25,85.687,85.616,57.74]
[1646664705198,6.25,85.687,85.62,17.5165]
[1646664705398,0.25,85.687,85.621,6.25]
[1646664705597,5.837,85.686,85.618,6.25]
[1646664705798,0.25,85.685,85.618,0.25]
[1646664705998,5.837,85.684,85.618,0.25]
[1646664706198,23.3385,85.683,85.618,0.25]
[1646664706400,23.3385,85.683,85.618,116.1]
[1646664706600,23.3385,85.683,85.62,58.49]
[1646664706897,23.3385,85.683,85.621,6.25]
[1646664707101,5.837,85.682,85.621,6.25]
[1646664707299,0.25,85.681,85.621,6.25]
[1646664707498,5.837,85.68,85.621,0.25]
[1646664707698,5.837,85.68,85.621,6.25]
[1646664707898,5.837,85.682,85.624,116.1]
[1646664708099,23.0885,85.683,85.627,36.19731978]
[1646664708299,23.0885,85.683,85.628,122.35]
[1646664708504,23.0885,85.683,85.628,0.25]
[1646664709098,0.25,85.682,85.628,0.25]
[1646664709298,5.837,85.681,85.628,0.25]
[1646664709498,5.837,85.681,85.628,116.35]
[1646664709703,6.0,85.699,85.628,116.35]
[1646664709900,17.5164,85.7,85.628,0.25]
[1646664710300,5.836,85.699,85.628,0.25]
[1646664710502,8.67213526,85.699,85.628,0.25]
[1646664710703,2.83613526,85.698,85.628,116.35]
[1646664711305,76.65610033,85.706,85.63,116.1]
[1646664711602,0.25,85.705,85.632,116.1]
[1646664711802,48.6227,85.706,85.633,6.25]
[1646664712004,48.6227,85.706,85.634,116.1]
[1646664712206,48.6227,85.706,85.635,6.25]
[1646664712403,5.836,85.705,85.635,6.25]
[1646664712605,17.5163,85.7,85.635,6.25]
[1646664712905,5.836,85.699,85.636,6.0]
[1646664713104,5.836,85.699,85.637,0.25]
[1646664713305,0.25,85.698,85.637,0.25]
[1646664713524,5.836,85.697,85.637,0.25]
[1646664713725,0.25,85.696,85.637,0.25]
[1646664713925,17.5185,85.69,85.631,6.0]
[1646664714127,116.1,85.688,85.59,16.82]
[1646664714326,116.1,85.688,85.56,210.21]
[1646664714327,216.1,85.686,85.58,16.82]
[1646664714527,12.087,85.685,85.56,210.21]
[1646664714729,12.087,85.685,85.59,16.82]
[1646664714928,17.5252,85.68,85.593,47.12231884]
[1646664715128,12.088,85.679,85.597,116.1]
[1646664715328,6.25,85.679,85.599,116.1]
[1646664715529,9.08613526,85.679,85.601,116.1]
[1646664715731,2.83613526,85.678,85.603,115.6]
[1646664715932,17.5229,85.67,85.603,115.6]
[1646664716131,6.088,85.669,85.607,115.6]
[1646664716331,6.088,85.669,85.609,115.6]
[1646664716531,0.25,85.669,85.614,58.49]
[1646664716730,0.25,85.669,85.617,115.6]
[1646664716930,0.25,85.669,85.62,58.49]
[1646664717132,0.25,85.669,85.622,58.49]
[1646664717334,0.25,85.676,85.622,58.49]
[1646664717532,17.5224,85.67,85.622,58.49]
[1646664717733,6.087,85.669,85.622,58.49]
[1646664719034,2.83613526,85.691,85.625,116.1]
[1646664719335,6.25,85.686,85.626,0.25]
[1646664719746,6.0,85.685,85.626,0.25]
[1646664719938,6.087,85.684,85.626,0.25]
[1646664720138,17.5201,85.68,85.626,0.25]
[1646664720335,6.087,85.679,85.625,0.25]
[1646664721135,29.33340033,85.694,85.625,116.35]
[1646664721335,5.837,85.703,85.633,116.1]
[1646664721538,24.6323,85.716,85.637,116.1]
[1646664721737,24.6323,85.716,85.641,116.1]
[1646664721938,24.6323,85.716,85.643,116.1]
[1646664722137,140.7323,85.716,85.652,45.92253864]
[1646664722338,38.16953559,85.715,85.63,16.82]
[1646664722539,38.16953559,85.715,85.619,116.1]
[1646664722540,38.16953559,85.715,85.632,0.25]
[1646664722737,32.16953559,85.714,85.632,0.25]
[1646664722937,6.0,85.713,85.632,0.25]
[1646664723140,5.836,85.712,85.62,16.82]
[1646664723338,17.5142,85.71,85.631,100.9959232]
[1646664723538,12.086,85.709,85.631,100.9959232]
[1646664723738,1.5585686,85.707,85.632,0.25]
[1646664723940,12.086,85.706,85.631,100.9959232]
[1646664724142,44.25553559,85.706,85.632,0.25]
[1646664724339,24.435,85.705,85.631,58.49]
[1646664724539,17.519,85.69,85.631,58.49]
[1646664724740,6.086,85.689,85.631,58.49]
[1646664725142,8.92213526,85.689,85.631,58.49]
[1646664725341,2.83613526,85.688,85.631,58.49]
[1646664725543,0.25,85.687,85.631,58.49]
[1646664725942,32.41953559,85.687,85.631,58.49]
[1646664726143,17.5227,85.68,85.631,58.49]
[1646664726342,0.25,85.679,85.631,58.49]
[1646664726542,0.25,85.679,85.631,95.22392699]
[1646664726743,0.25,85.679,85.631,58.49]
[1646664727343,0.25,85.685,85.611,116.1]
[1646664727545,23.4739,85.685,85.617,116.1]
[1646664727746,23.4739,85.685,85.62,58.49]
[1646664727944,23.4739,85.685,85.621,0.25]
[1646664728349,5.837,85.684,85.621,0.25]
[1646664728546,0.25,85.683,85.621,0.25]
[1646664728748,5.837,85.682,85.621,0.25]
[1646664728946,0.25,85.681,85.621,0.25]
[1646664729147,5.837,85.68,85.621,0.25]
[1646664729347,32.16953559,85.699,85.631,116.1]
[1646664729550,5.837,85.7,85.635,116.1]
[1646664729751,5.836,85.724,85.65,16.82]
[1646664729949,5.836,85.724,85.653,45.79046604]
[1646664730151,5.835,85.728,85.654,0.25]
[1646664730351,1.5585686,85.729,85.654,0.25]
[1646664730553,133.62824592,85.727,85.639,6.25]
[1646664730850,1.5585686,85.713,85.639,0.25]
[1646664731053,17.5197,85.7,85.639,0.25]
[1646664731253,17.5197,85.7,85.62,34.3382]
[1646664731254,6.086,85.699,85.624,46.76404002]
[1646664731454,14.92213526,85.699,85.632,6.0]
[1646664731751,2.83613526,85.698,85.632,6.0]
[1646664731952,17.5196,85.69,85.632,6.0]
[1646664732169,6.086,85.689,85.596,6.0]
[1646664732351,28.9854,85.688,85.596,6.0]
[1646664732551,58.4259,85.68,85.596,6.0]
[1646664732756,36.2731,85.679,85.596,6.0]
[1646664733055,36.2731,85.679,85.598,58.49]
[1646664733252,29.5394527,85.678,85.6,58.49]
[1646664733453,35.0734,85.677,85.6,58.49]
[1646664733656,17.5278,85.67,85.6,58.49]
[1646664733953,116.1,85.676,85.596,6.0]
[1646664733954,58.4312,85.66,85.596,6.0]
[1646664734252,12.089,85.659,85.576,47.6044993]
[1646664734454,61.92811744,85.659,85.577,116.1]
[1646664734654,17.5294,85.65,85.58,58.49]
[1646664734855,0.25,85.649,85.58,58.49]
[1646664735054,5.84,85.648,85.58,58.49]
[1646664735254,0.25,85.647,85.58,58.49]
[1646664735454,5.84,85.646,85.58,58.49]
[1646664735657,6.25,85.645,85.581,0.25]
[1646664735855,17.5283,85.64,85.56,16.82]
[1646664736055,12.09,85.639,85.553,116.1]
[1646664736255,0.18184096,85.629,85.553,116.1]
[1646664736459,0.18184096,85.627,85.553,116.1]
[1646664736655,6.25,85.627,85.553,116.1]
[1646664736855,5.841,85.626,85.554,34.40853389]
[1646664737057,6.25,85.625,85.555,58.49]
[1646664737256,17.5366,85.62,85.555,58.49]
[1646664737456,116.1,85.609,85.49,16.82]
[1646664737657,116.1,85.607,85.465,46.9574]
[1646664737858,0.32110747,85.604,85.47,17.2636]
[1646664738056,209.5534,85.589,85.462,14.38029793]
[1646664738259,17.5474,85.56,85.461,46.31010285]
[1646664738457,99.5534,85.587,85.461,46.31010285]
[1646664738458,53.7741,85.559,85.462,116.1]
[1646664738857,53.7741,85.559,85.462,185.66]
[1646664739059,53.5241,85.559,85.464,185.66]
[1646664739365,0.45096545,85.576,85.472,185.66]
[1646664739366,26.70331744,85.576,85.472,185.66]